fUSD/lending_fUSD_20260425
["ID","MTS","AMOUNT","RATE_DAILY","PERIOD"]
[421118377,1777086640050,-500.0,0.0001,2]
[421118378,1777086640060,-151.0,0.0001,2]
[421118379,1777086640070,-500.0,0.0001,2]
[421118380,1777086640080,-151.0,0.0001,2]
[421118381,1777086640089,-500.0,0.0001,2]
[421118382,1777086640099,-151.0,0.0001,2]
[421118383,1777086640110,-500.0,0.0001,2]
[421118384,1777086640119,-500.0,0.0001,2]
[421118385,1777086640129,-500.0,0.0001,2]
[421118386,1777086640139,-500.0,0.0001,2]
[421118387,1777086640150,-500.0,0.0001,2]
[421118388,1777086640160,-500.0,0.0001,2]
[421118389,1777086640171,-500.0,0.0001,2]
[421118390,1777086640180,-500.0,0.0001,2]
[421118391,1777086640190,-500.0,0.0001,2]
[421118392,1777086640200,-383.31630587,0.0001,2]
[421118393,1777086640210,-1337.30371513,0.0001,2]
[421118394,1777086640220,-1280.14064233,0.0001,2]
[421118395,1777086640230,-790.69160991,0.0001,2]
[421118396,1777086640240,-208.23916562,0.00010025,2]
[421118397,1777086640250,-250.0,0.00010044,2]
[421118398,1777086640260,-250.0,0.00010044,2]
[421118399,1777086640269,-981.9783664,0.00010087,2]
[421118400,1777086640280,-3652.4715322,0.00010087,2]
[421118401,1777086640290,-2000.0,0.0001017,2]
[421118402,1777086640300,-2000.0,0.0001017,2]
[421118403,1777086640310,-2000.0,0.0001019,2]
[421118404,1777086640327,-568.24,0.00010195,2]
[421118405,1777086640337,-2802.0,0.000102,2]
[421118406,1777086640348,-2000.0,0.0001022,2]
[421118407,1777086640359,-2000.0,0.00010274,2]
[421118408,1777086640369,-200.0,0.00010274,2]
[421118409,1777086640380,-200.0,0.00010274,2]
[421118410,1777086640390,-1532.0,0.00010274,2]
[421118411,1777086640402,-1532.0,0.00010274,2]
[421118412,1777086640412,-1532.0,0.00010274,2]
[421118413,1777086640423,-1532.0,0.00010274,2]
[421118414,1777086640433,-790.19006764,0.00010274,2]
[421118415,1777086640443,-151.0,0.00010274,2]
[421118416,1777086640454,-2000.0,0.00010274,2]
[421118417,1777086640465,-2000.0,0.00010274,2]
[421118418,1777086640475,-865.0,0.00010274,3]
[421118419,1777086640486,-151.0,0.00010274,3]
[421118420,1777086640496,-1333.68303085,0.00010377,2]
[421118421,1777086640507,-200.0,0.00010377,2]
[421118422,1777086640517,-1117.0,0.00010388,2]
[421118423,1777086640528,-5530.0,0.000104,5]
[421118424,1777086640539,-1131.91873382,0.00010467,3]
[421118425,1777086640548,-6695.47,0.00010468,2]
[421118426,1777086640559,-49121.89,0.00010468,2]
[421118427,1777086640569,-1222.3,0.00010468,2]
[421118428,1777086640579,-1044.47,0.00010468,2]
[421118429,1777086640589,-4016.08,0.00010468,2]
[421118430,1777086640599,-207.451266,0.00010468,2]
[421118431,1777086640609,-207.451266,0.00010468,2]
[421118432,1777086640619,-207.451266,0.00010468,2]
[421118434,1777086640630,-207.451266,0.00010468,2]
[421118435,1777086640640,-151.0,0.00010468,2]
[421118436,1777086640650,-503.35704854,0.00010473,2]
[421118437,1777086640667,-501.52835526,0.00010473,2]
[421118438,1777086640677,-200.0,0.00010481,2]
[421118439,1777086640687,-200.0,0.00010548,2]
[421118440,1777086640697,-1386.78395259,0.00010548,2]
[421118441,1777086640710,-9373.66,0.00010574,2]
[421118442,1777086640721,-68770.64,0.00010574,2]
[421118444,1777086640732,-1711.23,0.00010574,2]
[421118445,1777086640743,-1462.26,0.00010574,2]
[421118446,1777086640754,-5622.52,0.00010574,2]
[421118447,1777086640765,-207.451266,0.00010574,2]
[421118448,1777086640775,-207.451266,0.00010574,2]
[421118449,1777086640786,-207.451266,0.00010574,2]
[421118450,1777086640796,-207.451266,0.00010574,2]
[421118451,1777086640808,-151.0,0.00010574,2]
[421118452,1777086640819,-200.0,0.00010585,2]
[421118453,1777086640830,-168.68,0.00010687,2]
[421118454,1777086640841,-200.0,0.00010691,2]
[421118455,1777086640852,-14240.40173331,0.000107,2]
[421118456,1777086640863,-865.0,0.00010891,3]
[421118457,1777086640873,-4149.79519703,0.000109,2]
[421118458,1777086640883,-1042.1222881,0.00010915,2]
[421118459,1777086640894,-151.0,0.00010925,3]
[421118460,1777086640904,-1117.0,0.00010934,2]
[421118461,1777086640915,-200.0,0.00010959,2]
[421118462,1777086640925,-200.0,0.00010959,2]
[421118463,1777086640935,-200.0,0.00010959,2]
[421118464,1777086640946,-500.0,0.00010959,2]
[421118465,1777086640957,-151.0,0.00010959,2]
[421118466,1777086640967,-151.0,0.00010959,2]
[421118467,1777086640977,-151.0,0.00010959,2]
[421118468,1777086640988,-151.0,0.00010959,2]
[421118469,1777086641000,-151.0,0.00010959,2]
[421118470,1777086641014,-151.0,0.00010959,2]
[421118471,1777086641025,-235.000001,0.00010959,2]
[421118472,1777086641035,-1229.64,0.00010989,2]
[421118473,1777086641045,-543.89,0.00010989,2]
[421118474,1777086641055,-1937.2,0.00010989,2]
[421118475,1777086641065,-150.0,0.00010989,2]
[421118476,1777086641075,-201.95,0.00010989,2]
[421118477,1777086641085,-160.0,0.00011,2]
[421118478,1777086641096,-887.23518234,0.00011,2]
[421118479,1777086641105,-721.12765535,0.00011032,2]
[421118480,1777086641116,-599.60298507,0.00011037,2]
[421118481,1777086641126,-151.0,0.00011039,2]
[421118482,1777086641136,-200.0,0.00011096,2]
[421118483,1777086641146,-1438.09495884,0.00011096,2]
[421118484,1777086641157,-168.68,0.00011127,2]
[421118485,1777086641167,-168.68,0.00011127,2]
[421118486,1777086641177,-232.528913,0.00011214,2]
[421118487,1777086641187,-583.32,0.0001122,2]
[421118488,1777086641197,-890.27,0.0001122,2]
[421118489,1777086641207,-9014.187,0.000113,2]
[421118490,1777086641217,-3869.16122669,0.000113,2]
[421118491,1777086641228,-668.15981105,0.00011399,2]
[421118492,1777086641238,-361.23291955,0.00011399,2]
[421118493,1777086641248,-228.384902,0.000114,2]
[421118494,1777086641257,-47011.65859418,0.000114,2]
[421118495,1777086641467,-770.5582376,0.000114,2]
[421118496,1777086641503,-90726.51842487,0.000114,2]
[421118497,1777086641513,-207.451266,0.000114,2]
[421118498,1777086641523,-207.451266,0.000114,2]
[421118499,1777086641533,-207.451266,0.000114,2]
[421118500,1777086641543,-207.451266,0.000114,2]
[421118501,1777086641553,-151.0,0.000114,2]
[421118502,1777086641563,-151.0,0.000114,2]
[421118503,1777086641573,-151.0,0.000114,2]
[421118504,1777086641583,-151.0,0.000114,2]
[421118505,1777086641593,-814.9765579,0.00011499,2]
[421118506,1777086641603,-162.0,0.000115,2]
[421118507,1777086641613,-865.0,0.00011508,3]
[421118508,1777086641623,-1117.0,0.0001151,2]
[421118509,1777086641633,-357.53891313,0.0001156,2]
[421118510,1777086641643,-151.0,0.00011577,3]
[421118511,1777086641652,-500.0,0.00011614,2]
[421118512,1777086641661,-500.0,0.00011614,2]
[421118513,1777086641671,-200.0,0.00011644,2]
[421118514,1777086641681,-1149.16414692,0.00011644,2]
[421118515,1777086641690,-3157.12483413,0.0001166,2]
[421118516,1777086641700,-11236.26951712,0.0001166,2]
[421118517,1777086641710,-2672.54217479,0.0001176,2]
[421118518,1777086641720,-176.297026,0.0001176,2]
[421118519,1777086641730,-160.0,0.0001176,2]
[421118520,1777086641740,-308.981595,0.0001176,2]
[421118521,1777086641750,-457.963191,0.0001176,2]
[421118522,1777086641759,-160.0,0.0001176,2]
[421118523,1777086641770,-274.234619,0.0001176,2]
[421118524,1777086641780,-388.469238,0.0001176,2]
[421118525,1777086641790,-162.0,0.000118,3]
[421118526,1777086641799,-162.0,0.000118,3]
[421118527,1777086641808,-181.8458498,0.00011814,2]
[421118528,1777086641818,-500.0,0.00011842,3]
[421118529,1777086641828,-151.0,0.00011847,2]
[421118530,1777086641839,-2733.70560001,0.00011848,2]
[421118531,1777086641849,-638.33,0.00011858,2]
[421118532,1777086641859,-18700.0,0.000119,4]
[421118533,1777086641868,-7114.0,0.00011973,2]
[421118534,1777086641878,-207.72649019,0.00011973,2]
[421118535,1777086641888,-207.451266,0.00011982,2]
[421118536,1777086641899,-207.451266,0.00011982,2]
[421118537,1777086641908,-207.451266,0.00011982,2]
[421118538,1777086641918,-207.451266,0.00011982,2]
[421118539,1777086641928,-25000.0,0.00011982,2]
[421118540,1777086641938,-790.69160991,0.0001199,2]
[421118541,1777086641948,-151.0,0.00011991,2]
[421118542,1777086641959,-151.0,0.00011991,2]
[421118543,1777086641969,-151.0,0.00011991,2]
[421118544,1777086641979,-25000.0,0.00011991,2]
[421118545,1777086641989,-1131.91873382,0.00011999,3]
[421118546,1777086641999,-1131.91873381,0.00011999,3]
[421118547,1777086642009,-1842488.65226723,0.00012,2]
[421118548,1777086642019,-294260.8282332,0.00012,2]
[421118549,1777086642030,-300405.95552621,0.00012,2]
[421118550,1777086642040,-46325.03944314,0.00012,2]
[421118551,1777086642050,-25000.0,0.00012,2]
[421118552,1777086642060,-10783.35706524,0.00012,2]
[421118553,1777086642070,-207.451266,0.00012,2]
[421118554,1777086642080,-207.451266,0.00012,2]
[421118555,1777086642090,-207.451266,0.00012,2]
[421118556,1777086642100,-207.451259,0.00012,2]
[421118557,1777086642110,-151.0,0.00012,2]
[421118558,1777086642120,-151.0,0.00012,2]
[421118559,1777086642130,-151.0,0.00012,2]
[421118560,1777086642151,-1117.0,0.00012116,2]
[421118561,1777086642177,-865.0,0.00012125,3]
[421118562,1777086642193,-200.0,0.00012192,2]
[421118563,1777086642213,-150.0,0.0001222,2]
[421118564,1777086642233,-151.0,0.00012228,3]
[421118565,1777086642253,-2475.0,0.00012265,2]
[421118566,1777086642270,-416.0,0.00012265,2]
[421118567,1777086642287,-444.3,0.00012276,2]
[421118568,1777086642306,-421.338539,0.00012348,2]
[421118569,1777086642324,-373.956299,0.00012348,2]
[421118570,1777086642342,-1349.0,0.00012365,2]
[421118571,1777086642360,-3531.0,0.00012365,2]
[421118572,1777086642381,-150.0,0.00012535,2]
[421118573,1777086642400,-151.17,0.00012674,2]
[421118574,1777086642417,-638.43,0.00012683,2]
[421118575,1777086642441,-201.41231621,0.0001274,2]
[421118576,1777086642456,-865.0,0.00012743,3]
[421118577,1777086642471,-1117.0,0.00012753,2]
[421118578,1777086642490,-151.11,0.00012765,2]
[421118579,1777086642503,-500.0,0.00012827,2]
[421118580,1777086642518,-151.0,0.0001288,3]
[421118581,1777086642537,-250.0,0.00013,2]
[421118582,1777086642551,-168.68,0.00013359,2]
[421118583,1777086642567,-865.0,0.0001336,3]
[421118584,1777086642602,-1117.0,0.00013424,2]
[421118586,1777086642619,-230.65,0.00013481,2]
[421118588,1777086642639,-392.67,0.00013496,2]
[421118589,1777086642657,-503.0,0.000135,2]
[421118591,1777086642676,-504.0,0.000135,2]
[421118594,1777086642695,-570.49,0.00013509,2]
[421118595,1777086642713,-5800.0,0.00013512,2]
[421118596,1777086642730,-5800.0,0.00013512,2]
[421118597,1777086642748,-5800.0,0.0001352,2]
[421118598,1777086642765,-5800.0,0.0001352,2]
[421118599,1777086642782,-219.09604,0.00013524,2]
[421118600,1777086642798,-194.457275,0.00013524,2]
[421118603,1777086642814,-5800.0,0.00013529,2]
[421118604,1777086642831,-5800.0,0.00013529,2]
[421118605,1777086642848,-151.0,0.00013531,3]
[421118606,1777086642865,-5800.0,0.00013537,2]
[421118607,1777086642881,-5800.0,0.00013537,2]
[421118609,1777086642897,-5800.0,0.00013537,2]
[421118612,1777086642912,-5800.0,0.00013537,2]
[421118613,1777086642929,-192.12,0.00013651,2]
[421118614,1777086642945,-500.0,0.00013698,2]
[421118615,1777086642960,-500.0,0.00013698,2]
[421118616,1777086642975,-500.0,0.00013698,2]
[421118617,1777086642991,-500.0,0.00013698,2]
[421118618,1777086643007,-500.0,0.00013698,2]
[421118619,1777086643022,-500.0,0.00013698,2]
[421118620,1777086643038,-500.0,0.00013698,2]
[421118621,1777086643054,-500.0,0.00013698,2]
[421118622,1777086643071,-500.0,0.00013698,2]
[421118623,1777086643087,-500.0,0.00013698,2]
[421118624,1777086643101,-500.0,0.00013698,2]
[421118625,1777086643117,-500.0,0.00013698,2]
[421118626,1777086643133,-500.0,0.00013698,2]
[421118627,1777086643147,-500.0,0.00013698,2]
[421118628,1777086643163,-500.0,0.00013698,2]
[421118629,1777086643178,-500.0,0.00013698,2]
[421118630,1777086643193,-500.0,0.00013698,2]
[421118631,1777086643208,-500.0,0.00013698,2]
[421118632,1777086643224,-430.81786602,0.00013698,2]
[421118633,1777086643238,-500.0,0.00013698,2]
[421118634,1777086643254,-500.0,0.00013698,2]
[421118635,1777086643269,-408.2473304,0.00013698,2]
[421118636,1777086643284,-2000.0,0.00013699,2]
[421118637,1777086643300,-2000.0,0.00013699,2]
[421118638,1777086643315,-500.0,0.00013699,2]
[421118639,1777086643330,-500.0,0.00013699,2]
[421118640,1777086643345,-500.0,0.00013699,2]
[421118641,1777086643360,-500.0,0.00013699,2]
[421118642,1777086643375,-154.70492616,0.00013699,2]
[421118643,1777086643390,-1000.0,0.00013699,7]
[421118644,1777086643405,-166.84016762,0.00013699,2]
[421118645,1777086643421,-150.0,0.00013699,2]
[421118646,1777086643437,-218.4408367,0.00013699,2]
[421118647,1777086643452,-150.0,0.00013699,2]
[421118648,1777086643467,-351.25,0.000137,2]
[421118649,1777086643483,-7205.14,0.000137,2]
[421118650,1777086643498,-590.94,0.000137,2]
[421118651,1777086643514,-152.0,0.0001372,3]
[421118652,1777086643529,-169.39124812,0.00013756,2]
[421118653,1777086643544,-747.8093786,0.00013771,2]
[421118654,1777086643559,-621.78829552,0.00013776,2]
[421118656,1777086643575,-192.22282029,0.000138,5]
[421118657,1777086643590,-3700.0,0.000139,5]
[421118658,1777086643605,-559.0,0.00013967,2]
[421118660,1777086643620,-697.0,0.00013967,2]
[421118663,1777086643636,-252.0,0.00013967,2]
[421118665,1777086643653,-887.0,0.00013967,2]
[421118668,1777086643668,-1182.0,0.00013967,2]
[421118671,1777086643684,-1176.0,0.00013967,2]
[421118673,1777086643700,-375.0,0.00013967,2]
[421118675,1777086643715,-270.0,0.00013967,2]
[421118678,1777086643730,-1297.0,0.00013967,2]
[421118681,1777086643745,-668.0,0.00013967,2]
[421118683,1777086643760,-865.0,0.00013977,3]
[421118686,1777086643775,-152.0,0.00013997,4]
[421118688,1777086643790,-1117.0,0.00014096,2]
[421118691,1777086643806,-151.0,0.00014183,3]
[421118693,1777086643821,-2304.00808374,0.0001421,7]
[421118696,1777086643836,-152.0,0.00014274,5]
[421118699,1777086643851,-500.0,0.00014354,2]
[421118702,1777086643866,-500.0,0.00014354,2]
[421118704,1777086643881,-401.58064544,0.00014371,2]
[421118706,1777086643897,-504.0,0.00014437,2]
[421118709,1777086643912,-152.0,0.00014551,6]
[421118711,1777086643927,-865.0,0.00014594,3]
[421118714,1777086643942,-1117.0,0.00014801,2]
[421118716,1777086643957,-152.0,0.00014828,7]
[421118719,1777086643971,-151.0,0.00014834,3]
[421118721,1777086643986,-256.14799531,0.00014866,2]
[421118724,1777086644001,-559.0,0.00014967,2]
[421118726,1777086644017,-697.0,0.00014967,2]
[421118729,1777086644031,-252.0,0.00014967,2]
[421118731,1777086644046,-887.0,0.00014967,2]
[421118734,1777086644061,-1182.0,0.00014967,2]
[421118737,1777086644076,-1176.0,0.00014967,2]
[421118739,1777086644091,-375.0,0.00014967,2]
[421118742,1777086644106,-270.0,0.00014967,2]
[421118744,1777086644120,-1297.0,0.00014967,2]
[421118747,1777086644135,-668.0,0.00014967,2]
[421118749,1777086644149,-464.0,0.00015,2]
[421118751,1777086644164,-25000.0,0.00015,2]
[421118754,1777086644179,-252.0,0.00015,2]
[421118756,1777086644194,-232.0,0.00015,2]
[421118759,1777086644209,-160.0,0.00015,2]
[421118762,1777086644225,-300.0,0.00015,2]
[421118764,1777086644239,-1113.58,0.00015,2]
[421118767,1777086644254,-151.0,0.00015068,2]
[421118769,1777086644268,-152.0,0.00015105,8]
[421118772,1777086644283,-151.0,0.00015123,2]
[421118774,1777086644298,-151.0,0.00015164,2]
[421118777,1777086644312,-151.0,0.00015164,2]
[421118779,1777086644326,-151.0,0.00015178,2]
[421118782,1777086644340,-865.0,0.00015211,3]
[421118784,1777086644355,-151.0,0.00015233,2]
[421118787,1777086644369,-2475.0,0.00015265,2]
[421118789,1777086644383,-416.0,0.00015265,2]
[421118792,1777086644397,-151.0,0.00015288,2]
[421118794,1777086644411,-716.72,0.000153,6]
[421118796,1777086644425,-151.0,0.00015343,2]
[421118799,1777086644439,-1349.0,0.00015365,2]
[421118801,1777086644454,-224.643,0.00015365,2]
[421118804,1777086644468,-504.0,0.00015373,3]
[421118806,1777086644483,-152.0,0.00015382,9]
[421118809,1777086644499,-151.0,0.00015398,2]
[421118811,1777086644513,-7205.14,0.000154,2]
[421118814,1777086644528,-590.94,0.000154,2]
[421118816,1777086644542,-151.0,0.00015453,2]
[421118819,1777086644557,-192.12,0.00015461,2]
[421118821,1777086644571,-151.0,0.00015486,3]
[421118824,1777086644587,-571.46,0.000155,6]
[421118826,1777086644601,-311.52,0.000155,6]
[421118829,1777086644615,-151.0,0.00015508,2]
[421118831,1777086644629,-1117.0,0.00015541,2]
[421118834,1777086644643,-151.0,0.00015563,2]
[421118836,1777086644658,-700.49,0.000156,6]
[421118839,1777086644672,-303.62,0.000156,6]
[421118841,1777086644687,-151.0,0.00015618,2]
[421118844,1777086644701,-200.0,0.0001564,14]
[421118846,1777086644716,-152.0,0.00015659,10]
[421118848,1777086644730,-500.0,0.00015664,2]
[421118851,1777086644745,-151.0,0.00015673,2]
[421118853,1777086644760,-865.0,0.00015828,3]
[421118856,1777086644774,-152.0,0.00015936,11]
[421118858,1777086644789,-559.0,0.00015967,2]
[421118860,1777086644803,-697.0,0.00015967,2]
[421118863,1777086644818,-252.0,0.00015967,2]
[421118865,1777086644832,-887.0,0.00015967,2]
[421118868,1777086644847,-1182.0,0.00015967,2]
[421118870,1777086644861,-1176.0,0.00015967,2]
[421118873,1777086644876,-375.0,0.00015967,2]
[421118875,1777086644890,-270.0,0.00015967,2]
[421118877,1777086644904,-1297.0,0.00015967,2]
[421118880,1777086644918,-668.0,0.00015967,2]
[421118882,1777086644931,-151.0,0.00015985,2]
[421118884,1777086644945,-150.0,0.00016,2]
[421118887,1777086644958,-160.0,0.00016,3]
[421118889,1777086644972,-162.24807931,0.00016,3]
[421118891,1777086644986,-351.25,0.000161,2]
[421118893,1777086644999,-150.0,0.00016137,2]
[421118896,1777086645012,-151.0,0.00016137,3]
[421118898,1777086645025,-152.0,0.00016213,12]
[421118900,1777086645038,-504.0,0.0001631,4]
[421118903,1777086645052,-1117.0,0.00016318,2]
[421118905,1777086645066,-1589.01,0.00016355,2]
[421118907,1777086645079,-162.0,0.0001638,2]
[421118910,1777086645093,-508.41593305,0.000164,7]
[421118912,1777086645106,-1241.0,0.000164,7]
[421118914,1777086645119,-267.72043029,0.00016424,7]
[421118917,1777086645133,-500.0,0.00016437,2]
[421118919,1777086645147,-519.07,0.00016438,2]
[421118921,1777086645161,-517.2,0.00016438,2]
[421118924,1777086645174,-500.0,0.00016438,2]
[421118926,1777086645187,-500.0,0.00016438,2]
[421118928,1777086645200,-500.0,0.00016438,2]
[421118930,1777086645214,-500.0,0.00016438,2]
[421118933,1777086645227,-500.0,0.00016438,2]
[421118935,1777086645240,-500.0,0.00016438,2]
[421118937,1777086645254,-500.0,0.00016438,2]
[421118940,1777086645267,-500.0,0.00016438,2]
[421118942,1777086645279,-500.0,0.00016438,2]
[421118945,1777086645297,-500.0,0.00016438,2]
[421118947,1777086645311,-500.0,0.00016438,2]
[421118949,1777086645325,-500.0,0.00016438,2]
[421118951,1777086645339,-500.0,0.00016438,2]
[421118954,1777086645353,-500.0,0.00016438,2]
[421118956,1777086645366,-500.0,0.00016438,2]
[421118958,1777086645378,-500.0,0.00016438,2]
[421118961,1777086645392,-500.0,0.00016438,2]
[421118963,1777086645407,-546.68465171,0.00016438,2]
[421118966,1777086645422,-500.0,0.00016438,2]
[421118968,1777086645437,-500.0,0.00016438,2]
[421118971,1777086645451,-504.32,0.00016438,2]
[421119006,1777086645466,-800.0,0.00016438,2]
[421119007,1777086646096,-500.15001284,0.00016438,2]
[421119008,1777086646146,-500.2851862,0.00016438,2]
[421119009,1777086646166,-151.0,0.00016438,2]
[421119010,1777086646175,-151.0,0.00016438,2]
[421119011,1777086646185,-151.0,0.00016438,2]
[421119012,1777086646195,-151.0,0.00016438,2]
[421119013,1777086646204,-151.0,0.00016438,2]
[421119014,1777086646214,-151.0,0.00016438,2]
[421119015,1777086646223,-151.0,0.00016438,2]
[421119016,1777086646233,-151.0,0.00016438,2]
[421119017,1777086646242,-151.0,0.00016438,2]
[421119018,1777086646251,-151.0,0.00016438,2]
[421119019,1777086646261,-151.0,0.00016438,2]
[421119020,1777086646270,-151.0,0.00016438,2]
[421119021,1777086646280,-151.0,0.00016438,2]
[421119022,1777086646290,-151.0,0.00016438,2]
[421119023,1777086646300,-151.0,0.00016438,2]
[421119024,1777086646310,-151.0,0.00016438,2]
[421119025,1777086646319,-151.0,0.00016438,2]
[421119026,1777086646328,-151.0,0.00016438,2]
[421119027,1777086646337,-151.0,0.00016438,2]
[421119028,1777086646347,-151.0,0.00016438,2]
[421119029,1777086646356,-151.0,0.00016438,2]
[421119030,1777086646366,-151.0,0.00016438,2]
[421119031,1777086646375,-151.0,0.00016438,2]
[421119032,1777086646385,-151.0,0.00016438,2]
[421119033,1777086646395,-151.0,0.00016438,2]
[421119034,1777086646404,-151.0,0.00016438,2]
[421119035,1777086646414,-151.0,0.00016438,2]
[421119036,1777086646425,-151.0,0.00016438,2]
[421119037,1777086646434,-151.0,0.00016438,2]
[421119038,1777086646444,-151.0,0.00016438,2]
[421119039,1777086646453,-151.0,0.00016438,2]
[421119040,1777086646463,-151.0,0.00016438,2]
[421119041,1777086646472,-151.0,0.00016438,2]
[421119042,1777086646482,-151.0,0.00016438,2]
[421119043,1777086646492,-151.0,0.00016438,2]
[421119044,1777086646502,-151.0,0.00016438,2]
[421119045,1777086646511,-151.0,0.00016438,2]
[421119046,1777086646520,-151.0,0.00016438,2]
[421119047,1777086646529,-151.0,0.00016438,2]
[421119048,1777086646538,-151.0,0.00016438,2]
[421119049,1777086646548,-151.0,0.00016438,2]
[421119050,1777086646558,-151.0,0.00016438,2]
[421119051,1777086646567,-151.0,0.00016438,2]
[421119052,1777086646577,-273.641047,0.00016438,2]
[421119053,1777086646586,-386.15782047,0.00016438,2]
[421119054,1777086646597,-255.221773,0.00016438,2]
[421119055,1777086646606,-255.221773,0.00016438,2]
[421119056,1777086646616,-255.221773,0.00016438,2]
[421119057,1777086646626,-255.221773,0.00016438,2]
[421119058,1777086646636,-255.221773,0.00016438,2]
[421119059,1777086646645,-255.221773,0.00016438,2]
[421119060,1777086646655,-255.221773,0.00016438,2]
[421119061,1777086646665,-255.221773,0.00016438,2]
[421119062,1777086646675,-255.221773,0.00016438,2]
[421119063,1777086646685,-255.221773,0.00016438,2]
[421119064,1777086646694,-255.221773,0.00016438,2]
[421119065,1777086646704,-255.221773,0.00016438,2]
[421119066,1777086646713,-255.221773,0.00016438,2]
[421119067,1777086646723,-255.221773,0.00016438,2]
[421119068,1777086646732,-255.221773,0.00016438,2]
[421119069,1777086646742,-255.221773,0.00016438,2]
[421119070,1777086646751,-255.221773,0.00016438,2]
[421119071,1777086646761,-255.221773,0.00016438,2]
[421119072,1777086646770,-255.221773,0.00016438,2]
[421119073,1777086646780,-255.22177,0.00016438,2]
[421119074,1777086646789,-250.998002,0.00016438,2]
[421119075,1777086646799,-250.998002,0.00016438,2]
[421119076,1777086646808,-250.998002,0.00016438,2]
[421119077,1777086646818,-250.998002,0.00016438,2]
[421119078,1777086646828,-250.998002,0.00016438,2]
[421119079,1777086646838,-250.998002,0.00016438,2]
[421119080,1777086646848,-250.998002,0.00016438,2]
[421119081,1777086646857,-250.998002,0.00016438,2]
[421119082,1777086646867,-250.998002,0.00016438,2]
[421119083,1777086646876,-250.998002,0.00016438,2]
[421119084,1777086646886,-250.998002,0.00016438,2]
[421119085,1777086646895,-250.998002,0.00016438,2]
[421119086,1777086646904,-250.998002,0.00016438,2]
[421119087,1777086646914,-250.998002,0.00016438,2]
[421119088,1777086646923,-250.998002,0.00016438,2]
[421119089,1777086646932,-250.998002,0.00016438,2]
[421119090,1777086646941,-250.998002,0.00016438,2]
[421119091,1777086646951,-250.998002,0.00016438,2]
[421119092,1777086646960,-250.998002,0.00016438,2]
[421119093,1777086646970,-250.998002,0.00016438,2]
[421119094,1777086646979,-500.63635466,0.00016438,2]
[421119097,1777086646989,-500.0,0.00016438,2]
[421119099,1777086646998,-211.42358288,0.00016438,2]
[421119100,1777086647008,-500.0,0.00016438,2]
[421119102,1777086647017,-500.0,0.00016438,2]
[421119104,1777086647027,-865.0,0.00016446,3]
[421119106,1777086647036,-152.0,0.0001649,13]
[421119107,1777086647045,-7851.14,0.000165,2]
[421119108,1777086647055,-151.0,0.000165,2]
[421119109,1777086647064,-775.47832561,0.0001651,2]
[421119110,1777086647074,-644.79446246,0.00016515,2]
[421119111,1777086647084,-238.441311,0.00016712,2]
[421119112,1777086647093,-150.0,0.00016712,2]
[421119113,1777086647102,-150.0,0.00016712,2]
[421119114,1777086647112,-517.2,0.00016762,2]